[Event "*** Titled Tuesday Blitz"]
[Site "Chess.com"]
[Date "2020.05.05"]
[Round "4"]
[White "Volovier"]
[Black "orkan85"]
[Result "1-0"]
[WhiteElo "2713"]
[BlackElo "2483"]
[TimeControl "180+1"]
[EndTime "10:39:19 PDT"]
[Termination "Volovier won on time"]

1. d4 {[%clk 0:03:00.9]} 1... Nf6 {[%clk 0:02:59.7]} 2. c4 {[%clk 0:03:00.9]}
2... e6 {[%clk 0:02:59.9]} 3. Nc3 {[%clk 0:03:00.8]} 3... Bb4 {[%clk 0:02:59.5]}
4. e3 {[%clk 0:02:59.2]} 4... O-O {[%clk 0:02:58.9]} 5. Nf3 {[%clk 0:02:59.2]}
5... d5 {[%clk 0:02:58.1]} 6. Bd3 {[%clk 0:02:56.7]} 6... b6 {[%clk 0:02:58.4]}
7. cxd5 {[%clk 0:02:54.8]} 7... exd5 {[%clk 0:02:58.2]} 8. O-O {[%clk
0:02:51.6]} 8... Bb7 {[%clk 0:02:56.7]} 9. a3 {[%clk 0:02:50]} 9... Bd6 {[%clk
0:02:56.9]} 10. Qc2 {[%clk 0:02:46.5]} 10... a6 {[%clk 0:02:50.9]} 11. b3 {[%clk
0:02:44.5]} 11... Nbd7 {[%clk 0:02:48.8]} 12. Bb2 {[%clk 0:02:42.3]} 12... Qe7
{[%clk 0:02:48.6]} 13. Bf5 {[%clk 0:02:41.3]} 13... g6 {[%clk 0:02:41.2]} 14.
Bd3 {[%clk 0:02:40.1]} 14... Ne4 {[%clk 0:02:27.1]} 15. Bxe4 {[%clk 0:02:28.8]}
15... dxe4 {[%clk 0:02:26.7]} 16. Nd2 {[%clk 0:02:29.7]} 16... Nf6 {[%clk
0:02:17.4]} 17. Nc4 {[%clk 0:02:27.5]} 17... Bxh2+ {[%clk 0:01:27.3]} 18. Kxh2
{[%clk 0:02:28.4]} 18... Ng4+ {[%clk 0:01:27.9]} 19. Kg1 {[%clk 0:02:21.2]}
19... Qh4 {[%clk 0:01:28]} 20. Rfe1 {[%clk 0:02:20.5]} 20... Qh2+ {[%clk
0:01:28.6]} 21. Kf1 {[%clk 0:02:17.8]} 21... Qh1+ {[%clk 0:01:29.5]} 22. Ke2
{[%clk 0:02:16.4]} 22... Qxg2 {[%clk 0:01:30.4]} 23. Kd2 {[%clk 0:02:16.1]}
23... Rad8 {[%clk 0:01:04.7]} 24. Re2 {[%clk 0:02:12.9]} 24... c5 {[%clk
0:01:02.7]} 25. Na2 {[%clk 0:02:08.8]} 25... Nh6 {[%clk 0:00:18.3]} 26. Rd1
{[%clk 0:02:06.4]} 26... Nf5 {[%clk 0:00:16.3]} 27. Kc1 {[%clk 0:02:04.2]} 27...
cxd4 {[%clk 0:00:16.6]} 28. Bxd4 {[%clk 0:02:01.2]} 28... Nxd4 {[%clk
0:00:15.9]} 29. Rxd4 {[%clk 0:02:01.2]} 29... Rxd4 {[%clk 0:00:15.3]} 30. exd4
{[%clk 0:02:02]} 30... Rd8 {[%clk 0:00:14.8]} 31. Nb4 {[%clk 0:01:56.4]} 31...
Rxd4 {[%clk 0:00:12.4]} 32. Ne3 {[%clk 0:01:54.2]} 32... Qg5 {[%clk 0:00:10.2]}
33. Qc7 {[%clk 0:01:51.8]} 33... Qc5+ {[%clk 0:00:02.7]} 34. Rc2 {[%clk
0:01:49.6]} 34... Qxc7 {[%clk 0:00:01.1]} 35. Rxc7 {[%clk 0:01:48.3]} 35... a5
{[%clk 0:00:02]} 36. Nbc2 {[%clk 0:01:45.5]} 1-0

[Event "*** Titled Tuesday Blitz"]
[Site "Chess.com"]
[Date "2020.05.05"]
[Round "4"]
[White "HouseOfDurin"]
[Black "mitraasz"]
[Result "0-1"]
[WhiteElo "1995"]
[BlackElo "2210"]
[TimeControl "180+1"]
[EndTime "10:39:20 PDT"]
[Termination "mitraasz won by checkmate"]

1. d4 {[%clk 0:03:00.9]} 1... Nf6 {[%clk 0:02:58.7]} 2. Bg5 {[%clk 0:03:01.2]}
2... g6 {[%clk 0:02:52.6]} 3. Bxf6 {[%clk 0:03:01]} 3... exf6 {[%clk 0:02:53.5]}
4. c4 {[%clk 0:03:01.4]} 4... Bg7 {[%clk 0:02:53.2]} 5. Nc3 {[%clk 0:03:01.9]}
5... O-O {[%clk 0:02:53.4]} 6. g3 {[%clk 0:03:01.9]} 6... f5 {[%clk 0:02:53.7]}
7. Bg2 {[%clk 0:03:02.2]} 7... d6 {[%clk 0:02:53.2]} 8. e3 {[%clk 0:03:02.7]}
8... Nd7 {[%clk 0:02:53]} 9. Nge2 {[%clk 0:03:03]} 9... Nf6 {[%clk 0:02:53]} 10.
O-O {[%clk 0:03:02.8]} 10... Re8 {[%clk 0:02:51.8]} 11. Qd3 {[%clk 0:03:03.1]}
11... h5 {[%clk 0:02:50.5]} 12. h4 {[%clk 0:03:02.2]} 12... Ng4 {[%clk
0:02:50.1]} 13. b4 {[%clk 0:02:57.9]} 13... c6 {[%clk 0:02:41.6]} 14. a4 {[%clk
0:02:55.5]} 14... Bf6 {[%clk 0:02:34.3]} 15. Rfd1 {[%clk 0:02:16.8]} 15... Bxh4
{[%clk 0:02:19.4]} 16. gxh4 {[%clk 0:02:17.7]} 16... Qxh4 {[%clk 0:02:18.5]} 17.
Ng3 {[%clk 0:02:16.5]} 17... Nxe3 {[%clk 0:02:14]} 18. fxe3 {[%clk 0:02:13]}
18... Qxg3 {[%clk 0:02:09.9]} 19. e4 {[%clk 0:02:12.7]} 19... Qg5 {[%clk
0:01:52.3]} 20. d5 {[%clk 0:02:02.6]} 20... h4 {[%clk 0:01:39.9]} 21. Kh1 {[%clk
0:01:43.3]} 21... Kg7 {[%clk 0:01:13.6]} 22. Bh3 {[%clk 0:01:42.7]} 22... fxe4
{[%clk 0:00:57.1]} 23. Nxe4 {[%clk 0:01:41.8]} 23... Rxe4 {[%clk 0:00:56.3]} 24.
Bxc8 {[%clk 0:01:25]} 24... Re3 {[%clk 0:00:40.9]} 25. Qd4+ {[%clk 0:01:25]}
25... Kg8 {[%clk 0:00:27.8]} 26. Rg1 {[%clk 0:01:19.9]} 26... Rg3 {[%clk
0:00:19.4]} 27. Bxb7 {[%clk 0:01:01.4]} 27... Rh3# {[%clk 0:00:18.1]} 0-1

[Event "*** Titled Tuesday Blitz"]
[Site "Chess.com"]
[Date "2020.05.05"]
[Round "4"]
[White "matiss90"]
[Black "NotFischer"]
[Result "1-0"]
[WhiteElo "2495"]
[BlackElo "2156"]
[TimeControl "180+1"]
[EndTime "10:39:21 PDT"]
[Termination "matiss90 won by checkmate"]

1. e4 {[%clk 0:03:00.9]} 1... c5 {[%clk 0:02:59.6]} 2. Nf3 {[%clk 0:03:00.9]}
2... e6 {[%clk 0:03:00]} 3. d4 {[%clk 0:03:01.3]} 3... cxd4 {[%clk 0:03:00.9]}
4. Nxd4 {[%clk 0:03:02.2]} 4... a6 {[%clk 0:03:00.7]} 5. Nc3 {[%clk 0:03:02.2]}
5... Nc6 {[%clk 0:03:00.8]} 6. Nxc6 {[%clk 0:03:01]} 6... bxc6 {[%clk
0:03:00.8]} 7. Bd3 {[%clk 0:03:01.1]} 7... d5 {[%clk 0:03:00.7]} 8. O-O {[%clk
0:03:01.7]} 8... Nf6 {[%clk 0:03:00.6]} 9. e5 {[%clk 0:02:52.1]} 9... Nd7 {[%clk
0:03:00.5]} 10. Re1 {[%clk 0:02:52]} 10... Be7 {[%clk 0:03:00.3]} 11. Na4 {[%clk
0:02:51.2]} 11... c5 {[%clk 0:02:57.9]} 12. c4 {[%clk 0:02:51.1]} 12... d4
{[%clk 0:02:55.9]} 13. Qg4 {[%clk 0:02:50.7]} 13... Kf8 {[%clk 0:02:52]} 14. b3
{[%clk 0:02:47]} 14... Bb7 {[%clk 0:02:50.8]} 15. Ba3 {[%clk 0:02:38.5]} 15...
Qc7 {[%clk 0:02:50.2]} 16. Qg3 {[%clk 0:02:28.8]} 16... h5 {[%clk 0:02:49.4]}
17. h4 {[%clk 0:02:28.6]} 17... g6 {[%clk 0:02:46.3]} 18. Be4 {[%clk 0:02:26]}
18... Bxe4 {[%clk 0:02:33.1]} 19. Rxe4 {[%clk 0:02:26.9]} 19... Kg7 {[%clk
0:02:19.2]} 20. Rf1 {[%clk 0:02:10.4]} 20... Nb6 {[%clk 0:02:11.5]} 21. Nb2
{[%clk 0:02:01.9]} 21... a5 {[%clk 0:02:06.1]} 22. Nd3 {[%clk 0:02:01.7]} 22...
a4 {[%clk 0:02:05.4]} 23. Bc1 {[%clk 0:02:00.5]} 23... axb3 {[%clk 0:02:02.1]}
24. axb3 {[%clk 0:02:01.4]} 24... Ra1 {[%clk 0:02:00.3]} 25. Bg5 {[%clk
0:01:58]} 25... Rxf1+ {[%clk 0:01:58.8]} 26. Kxf1 {[%clk 0:01:58.9]} 26... Rc8
{[%clk 0:01:17.5]} 27. Rf4 {[%clk 0:01:35.4]} 27... Bxg5 {[%clk 0:01:14.9]} 28.
Qxg5 {[%clk 0:01:34.9]} 28... Nd7 {[%clk 0:01:10.1]} 29. g4 {[%clk 0:01:29.6]}
29... hxg4 {[%clk 0:00:57.2]} 30. h5 {[%clk 0:01:29.2]} 30... Rh8 {[%clk
0:00:40.5]} 31. hxg6 {[%clk 0:01:28.8]} 31... fxg6 {[%clk 0:00:35]} 32. Qe7+
{[%clk 0:01:28.3]} 32... Kh6 {[%clk 0:00:30.3]} 33. Rxg4 {[%clk 0:01:27.8]}
33... g5 {[%clk 0:00:16.3]} 34. Qxg5+ {[%clk 0:01:26.9]} 34... Kh7 {[%clk
0:00:16.6]} 35. Qh5# {[%clk 0:01:26.9]} 1-0

[Event "*** Titled Tuesday Blitz"]
[Site "Chess.com"]
[Date "2020.05.05"]
[Round "4"]
[White "BocharovD"]
[Black "LiamPutnam2008"]
[Result "1-0"]
[WhiteElo "2885"]
[BlackElo "2543"]
[TimeControl "180+1"]
[EndTime "10:39:22 PDT"]
[Termination "BocharovD won by resignation"]

1. c4 {[%clk 0:03:00.9]} 1... Nf6 {[%clk 0:02:41.5]} 2. g3 {[%clk 0:03:00.4]}
2... e5 {[%clk 0:02:39.1]} 3. Bg2 {[%clk 0:03:00.6]} 3... Nc6 {[%clk 0:02:40]}
4. Nc3 {[%clk 0:02:59.8]} 4... Bb4 {[%clk 0:02:39.8]} 5. Nd5 {[%clk 0:02:59.9]}
5... O-O {[%clk 0:02:37.1]} 6. e3 {[%clk 0:02:54.4]} 6... Re8 {[%clk 0:02:33.4]}
7. a3 {[%clk 0:02:52.6]} 7... Bf8 {[%clk 0:02:32.8]} 8. Ne2 {[%clk 0:02:50.5]}
8... d6 {[%clk 0:02:17.9]} 9. O-O {[%clk 0:02:47.8]} 9... Be6 {[%clk 0:02:16.1]}
10. d4 {[%clk 0:02:39.6]} 10... exd4 {[%clk 0:02:01]} 11. Nxd4 {[%clk
0:02:35.4]} 11... Nxd4 {[%clk 0:01:29.3]} 12. Qxd4 {[%clk 0:02:33.4]} 12... Nxd5
{[%clk 0:01:29]} 13. cxd5 {[%clk 0:02:33.1]} 13... Bd7 {[%clk 0:01:27]} 14. Bd2
{[%clk 0:02:32.2]} 14... h5 {[%clk 0:01:09.5]} 15. Rac1 {[%clk 0:02:28.7]} 15...
a6 {[%clk 0:01:01]} 16. Rc2 {[%clk 0:02:21.6]} 16... Bf5 {[%clk 0:00:57.3]} 17.
e4 {[%clk 0:02:15.1]} 17... Bg6 {[%clk 0:00:54.7]} 18. Rfc1 {[%clk 0:02:11.8]}
18... Rc8 {[%clk 0:00:54.1]} 19. f3 {[%clk 0:02:06]} 19... h4 {[%clk 0:00:51.9]}
20. Bh3 {[%clk 0:02:03.2]} 20... hxg3 {[%clk 0:00:43.5]} 21. hxg3 {[%clk
0:02:04.1]} 21... f5 {[%clk 0:00:33.5]} 22. exf5 {[%clk 0:01:52]} 22... Bh5
{[%clk 0:00:30]} 23. f6 {[%clk 0:01:48]} 23... gxf6 {[%clk 0:00:20]} 24. Bxc8
{[%clk 0:01:43.9]} 24... Qxc8 {[%clk 0:00:20.9]} 25. g4 {[%clk 0:01:43.8]} 25...
Bg6 {[%clk 0:00:18.8]} 26. Rxc7 {[%clk 0:01:41.5]} 26... Qd8 {[%clk 0:00:18.6]}
27. Rc8 {[%clk 0:01:33.1]} 27... Qe7 {[%clk 0:00:15.9]} 28. Rxe8 {[%clk
0:01:30.3]} 28... Bxe8 {[%clk 0:00:15.9]} 29. Re1 {[%clk 0:01:28.7]} 29... Qf7
{[%clk 0:00:14.4]} 30. Bc3 {[%clk 0:01:28.3]} 30... Bg7 {[%clk 0:00:12.6]} 31.
Qe4 {[%clk 0:01:25.3]} 31... Bb5 {[%clk 0:00:09.3]} 32. Qe6 {[%clk 0:01:24.5]}
1-0

[Event "*** Titled Tuesday Blitz"]
[Site "Chess.com"]
[Date "2020.05.05"]
[Round "4"]
[White "SerGo055"]
[Black "guillembaches"]
[Result "1-0"]
[WhiteElo "2605"]
[BlackElo "2423"]
[TimeControl "180+1"]
[EndTime "10:39:22 PDT"]
[Termination "SerGo055 won by resignation"]

1. d4 {[%clk 0:02:57.4]} 1... Nf6 {[%clk 0:02:59.5]} 2. Nf3 {[%clk 0:02:55.2]}
2... e6 {[%clk 0:02:59.5]} 3. c4 {[%clk 0:02:51.8]} 3... d5 {[%clk 0:02:58.9]}
4. Nc3 {[%clk 0:02:50.9]} 4... Be7 {[%clk 0:02:58.7]} 5. Bg5 {[%clk 0:02:49.6]}
5... h6 {[%clk 0:02:58.7]} 6. Bh4 {[%clk 0:02:43.8]} 6... O-O {[%clk 0:02:58.3]}
7. e3 {[%clk 0:02:42.3]} 7... Nbd7 {[%clk 0:02:57.9]} 8. cxd5 {[%clk 0:02:36]}
8... Nxd5 {[%clk 0:02:57.2]} 9. Bxe7 {[%clk 0:02:35.2]} 9... Nxe7 {[%clk
0:02:58.1]} 10. Be2 {[%clk 0:02:33.7]} 10... c5 {[%clk 0:02:57.9]} 11. O-O
{[%clk 0:02:33.3]} 11... b6 {[%clk 0:02:53.3]} 12. Qa4 {[%clk 0:02:32.8]} 12...
cxd4 {[%clk 0:02:45.6]} 13. Nxd4 {[%clk 0:02:31.3]} 13... Nc5 {[%clk 0:02:45.5]}
14. Qa3 {[%clk 0:02:25.4]} 14... Bb7 {[%clk 0:02:42]} 15. Rfd1 {[%clk
0:02:24.5]} 15... Nd5 {[%clk 0:02:23.5]} 16. Nxd5 {[%clk 0:02:18.4]} 16... Bxd5
{[%clk 0:02:18.7]} 17. Bf3 {[%clk 0:02:12.3]} 17... Bxf3 {[%clk 0:02:10.7]} 18.
Nxf3 {[%clk 0:02:11.8]} 18... Qe7 {[%clk 0:02:06.5]} 19. Ne5 {[%clk 0:02:01.1]}
19... Qc7 {[%clk 0:01:49.6]} 20. Qc3 {[%clk 0:01:49.8]} 20... Rac8 {[%clk
0:01:38.6]} 21. Rac1 {[%clk 0:01:47]} 21... a5 {[%clk 0:01:33.8]} 22. h3 {[%clk
0:01:10.6]} 22... Rfd8 {[%clk 0:01:29.3]} 23. a3 {[%clk 0:01:01.3]} 23... Qb7
{[%clk 0:01:15]} 24. Nc4 {[%clk 0:00:49.1]} 24... Rxd1+ {[%clk 0:01:02.9]} 25.
Rxd1 {[%clk 0:00:48.5]} 25... Ne4 {[%clk 0:01:02.6]} 26. Qd4 {[%clk 0:00:42.9]}
26... Nc5 {[%clk 0:00:50]} 27. Nd6 {[%clk 0:00:41.2]} 27... Qc7 {[%clk
0:00:40.6]} 28. Nxc8 {[%clk 0:00:40.5]} 1-0

[Event "*** Titled Tuesday Blitz"]
[Site "Chess.com"]
[Date "2020.05.05"]
[Round "4"]
[White "chiwii"]
[Black "GM_LOADING"]
[Result "1/2-1/2"]
[WhiteElo "2259"]
[BlackElo "2524"]
[TimeControl "180+1"]
[EndTime "10:39:26 PDT"]
[Termination "Game drawn by agreement"]

1. e4 {[%clk 0:03:00.9]} 1... e5 {[%clk 0:02:59.9]} 2. Nf3 {[%clk 0:03:00.6]}
2... Nc6 {[%clk 0:03:00.5]} 3. d4 {[%clk 0:02:59.9]} 3... exd4 {[%clk
0:03:00.5]} 4. Bc4 {[%clk 0:03:00.2]} 4... Nf6 {[%clk 0:03:01.1]} 5. O-O {[%clk
0:03:00.1]} 5... Nxe4 {[%clk 0:03:01.2]} 6. Re1 {[%clk 0:03:00.4]} 6... d5
{[%clk 0:03:01.5]} 7. Bxd5 {[%clk 0:03:00.9]} 7... Qxd5 {[%clk 0:03:01.9]} 8.
Nc3 {[%clk 0:03:01.4]} 8... Qd7 {[%clk 0:03:02.3]} 9. Nxe4 {[%clk 0:03:01.5]}
9... Be7 {[%clk 0:03:02.8]} 10. Bg5 {[%clk 0:02:59.5]} 10... O-O {[%clk
0:03:02.9]} 11. Bxe7 {[%clk 0:02:59.3]} 11... Qxe7 {[%clk 0:03:03.5]} 12. Nxd4
{[%clk 0:02:56.5]} 12... Bd7 {[%clk 0:03:04]} 13. Ng3 {[%clk 0:02:43.1]} 13...
Qb4 {[%clk 0:03:01.5]} 14. Nxc6 {[%clk 0:02:41.1]} 14... Bxc6 {[%clk 0:03:02.4]}
15. b3 {[%clk 0:02:35.2]} 15... Rad8 {[%clk 0:03:02.7]} 16. Qh5 {[%clk
0:02:34.7]} 16... Rd2 {[%clk 0:03:00.8]} 17. Nf5 {[%clk 0:02:18]} 17... Qf4
{[%clk 0:02:22]} 18. Ne7+ {[%clk 0:02:15.3]} 18... Kh8 {[%clk 0:02:20.6]} 19.
Re2 {[%clk 0:02:05.1]} 19... Rxe2 {[%clk 0:02:11.9]} 20. Qxe2 {[%clk 0:02:06]}
20... Re8 {[%clk 0:02:10.6]} 21. Re1 {[%clk 0:02:02.6]} 21... Qg5 {[%clk
0:01:55.4]} 22. g3 {[%clk 0:01:48.8]} 22... h6 {[%clk 0:01:47.2]} 23. c4 {[%clk
0:01:44.8]} 23... Qc5 {[%clk 0:01:41.9]} 24. h4 {[%clk 0:01:31.6]} 24... Qd6
{[%clk 0:01:31.8]} 25. Qe3 {[%clk 0:01:19.5]} 25... b6 {[%clk 0:01:24.1]} 26.
Kh2 {[%clk 0:01:05.2]} 26... Bb7 {[%clk 0:01:19.1]} 27. Ng6+ {[%clk 0:01:02.9]}
27... Qxg6 {[%clk 0:01:15.6]} 28. Qxe8+ {[%clk 0:01:02.7]} 28... Kh7 {[%clk
0:01:15.5]} 29. Qe3 {[%clk 0:00:59.5]} 29... Qc6 {[%clk 0:01:12.4]} 30. Qd3+
{[%clk 0:00:54.1]} 30... g6 {[%clk 0:01:08.7]} 31. Qd5 {[%clk 0:00:52.3]} 31...
Qxd5 {[%clk 0:01:06.5]} 32. cxd5 {[%clk 0:00:53.2]} 32... Bxd5 {[%clk
0:01:07.3]} 33. Re7 {[%clk 0:00:53.8]} 33... a5 {[%clk 0:01:03.5]} 34. Rxc7
{[%clk 0:00:53.7]} 34... a4 {[%clk 0:01:03.6]} 35. f4 {[%clk 0:00:49.2]} 35...
axb3 {[%clk 0:01:01.8]} 36. axb3 {[%clk 0:00:50.1]} 36... Bxb3 {[%clk
0:01:02.2]} 37. Rb7 {[%clk 0:00:50.6]} 37... Be6 {[%clk 0:01:02.7]} 38. Rxb6
{[%clk 0:00:50.5]} 38... h5 {[%clk 0:01:03.1]} 39. Kg2 {[%clk 0:00:50.6]} 39...
Kg7 {[%clk 0:01:03.1]} 40. Kf3 {[%clk 0:00:50.9]} 40... Kf6 {[%clk 0:01:02.9]}
41. Rb8 {[%clk 0:00:50.5]} 41... Bd5+ {[%clk 0:01:00.4]} 42. Ke3 {[%clk
0:00:50.4]} 1/2-1/2

[Event "*** Titled Tuesday Blitz"]
[Site "Chess.com"]
[Date "2020.05.05"]
[Round "4"]
[White "keepitcool9499"]
[Black "Batsai"]
[Result "1-0"]
[WhiteElo "2459"]
[BlackElo "2269"]
[TimeControl "180+1"]
[EndTime "10:39:30 PDT"]
[Termination "keepitcool9499 won by checkmate"]

1. d4 {[%clk 0:03:00.9]} 1... Nf6 {[%clk 0:02:59.6]} 2. c4 {[%clk 0:03:00.2]}
2... g6 {[%clk 0:03:00.1]} 3. Nc3 {[%clk 0:02:58.2]} 3... d5 {[%clk 0:03:00.5]}
4. Nf3 {[%clk 0:02:56.6]} 4... Bg7 {[%clk 0:02:59.7]} 5. e3 {[%clk 0:02:56.3]}
5... O-O {[%clk 0:02:58.8]} 6. Bd3 {[%clk 0:02:55.1]} 6... c5 {[%clk 0:02:55.6]}
7. cxd5 {[%clk 0:02:40.9]} 7... Nxd5 {[%clk 0:02:52.3]} 8. O-O {[%clk
0:02:36.3]} 8... Nxc3 {[%clk 0:02:30.2]} 9. bxc3 {[%clk 0:02:37.2]} 9... Nc6
{[%clk 0:02:28.8]} 10. Ba3 {[%clk 0:02:26.7]} 10... b6 {[%clk 0:02:03.6]} 11.
dxc5 {[%clk 0:02:23.5]} 11... Bb7 {[%clk 0:01:40.7]} 12. Rb1 {[%clk 0:02:13.1]}
12... Bxc3 {[%clk 0:01:37.3]} 13. Qc2 {[%clk 0:02:03.9]} 13... Bg7 {[%clk
0:01:33]} 14. Rfd1 {[%clk 0:02:00.8]} 14... Qc7 {[%clk 0:01:28.5]} 15. Bb5
{[%clk 0:01:55.1]} 15... Rfd8 {[%clk 0:01:16.7]} 16. Rdc1 {[%clk 0:01:50.9]}
16... Rac8 {[%clk 0:01:05.3]} 17. Qa4 {[%clk 0:01:41.2]} 17... bxc5 {[%clk
0:00:44.9]} 18. Rxc5 {[%clk 0:01:38.2]} 18... Qb6 {[%clk 0:00:25.3]} 19. Rcc1
{[%clk 0:01:29.2]} 19... Ne5 {[%clk 0:00:23.6]} 20. Nxe5 {[%clk 0:01:25.3]}
20... Rxc1+ {[%clk 0:00:20.8]} 21. Rxc1 {[%clk 0:01:23.3]} 21... Bxe5 {[%clk
0:00:21.7]} 22. Bxe7 {[%clk 0:01:20.5]} 22... Rc8 {[%clk 0:00:19]} 23. Rxc8+
{[%clk 0:01:16.7]} 23... Bxc8 {[%clk 0:00:19.9]} 24. Bd3 {[%clk 0:00:57.9]}
24... Qc7 {[%clk 0:00:06.3]} 25. Qe8+ {[%clk 0:00:55]} 25... Kg7 {[%clk
0:00:06.4]} 26. Qf8# {[%clk 0:00:53]} 1-0

[Event "*** Titled Tuesday Blitz"]
[Site "Chess.com"]
[Date "2020.05.05"]
[Round "4"]
[White "johnathan113"]
[Black "Sanyura"]
[Result "1-0"]
[WhiteElo "2727"]
[BlackElo "2491"]
[TimeControl "180+1"]
[EndTime "10:39:31 PDT"]
[Termination "johnathan113 won by resignation"]

1. d4 {[%clk 0:03:00.9]} 1... Nf6 {[%clk 0:02:57.6]} 2. Nc3 {[%clk 0:03:01.1]}
2... d5 {[%clk 0:02:55.1]} 3. Bf4 {[%clk 0:03:01]} 3... c6 {[%clk 0:02:54.6]} 4.
Qd2 {[%clk 0:03:00.4]} 4... e6 {[%clk 0:02:51.4]} 5. f3 {[%clk 0:02:59.1]} 5...
b5 {[%clk 0:02:50.4]} 6. g4 {[%clk 0:02:58.3]} 6... Bd6 {[%clk 0:02:42.9]} 7. e3
{[%clk 0:02:54.4]} 7... Bxf4 {[%clk 0:02:31.9]} 8. exf4 {[%clk 0:02:55.3]} 8...
Qd6 {[%clk 0:02:32.4]} 9. h4 {[%clk 0:02:53.9]} 9... h5 {[%clk 0:02:30.7]} 10.
g5 {[%clk 0:02:52.8]} 10... Ng8 {[%clk 0:02:30.9]} 11. f5 {[%clk 0:02:52]} 11...
exf5 {[%clk 0:02:29.6]} 12. O-O-O {[%clk 0:02:52.4]} 12... Be6 {[%clk
0:02:26.7]} 13. Kb1 {[%clk 0:02:51.9]} 13... Ne7 {[%clk 0:02:24.6]} 14. Nh3
{[%clk 0:02:52.3]} 14... Ng6 {[%clk 0:02:24.6]} 15. Ne2 {[%clk 0:02:51.2]} 15...
Nxh4 {[%clk 0:02:21.3]} 16. Nhf4 {[%clk 0:02:51.6]} 16... Nxf3 {[%clk
0:02:16.6]} 17. Qe3 {[%clk 0:02:51.4]} 17... Nxg5 {[%clk 0:02:16.4]} 18. Nxh5
{[%clk 0:02:51.5]} 18... f4 {[%clk 0:01:23.3]} 19. Nexf4 {[%clk 0:02:46.5]}
19... Rg8 {[%clk 0:01:20.5]} 20. Rg1 {[%clk 0:02:25.1]} 20... Qe7 {[%clk
0:00:47.1]} 21. Re1 {[%clk 0:02:07.1]} 21... Ne4 {[%clk 0:00:32.6]} 22. Bd3
{[%clk 0:01:59.6]} 22... g6 {[%clk 0:00:13.9]} 23. Bxe4 {[%clk 0:01:50.7]} 23...
dxe4 {[%clk 0:00:14.1]} 24. Qxe4 {[%clk 0:01:51.5]} 24... Kd7 {[%clk 0:00:03.4]}
25. Nxe6 {[%clk 0:01:47]} 25... fxe6 {[%clk 0:00:03.6]} 26. Nf4 {[%clk
0:01:47.3]} 26... Na6 {[%clk 0:00:02.5]} 27. Nxg6 {[%clk 0:01:39.2]} 27... Qd6
{[%clk 0:00:02.7]} 28. Ne5+ {[%clk 0:01:38]} 28... Kc7 {[%clk 0:00:03.2]} 29.
Qh7+ {[%clk 0:01:37.9]} 29... Kb6 {[%clk 0:00:02.8]} 30. Rxg8 {[%clk 0:01:36.7]}
30... Rxg8 {[%clk 0:00:02.7]} 31. Qxg8 {[%clk 0:01:37.6]} 31... Qb4 {[%clk
0:00:02.7]} 32. c3 {[%clk 0:01:34]} 32... Qd6 {[%clk 0:00:02.8]} 33. Nd3 {[%clk
0:01:30.7]} 33... b4 {[%clk 0:00:02.3]} 34. Qxe6 {[%clk 0:01:30.2]} 34... Qd8
{[%clk 0:00:01.7]} 35. Nxb4 {[%clk 0:01:29.9]} 35... Nxb4 {[%clk 0:00:01.4]} 36.
cxb4 {[%clk 0:01:30.8]} 36... Qh4 {[%clk 0:00:01.6]} 37. Qe3 {[%clk 0:01:30.8]}
1-0

[Event "*** Titled Tuesday Blitz"]
[Site "Chess.com"]
[Date "2020.05.05"]
[Round "4"]
[White "mfwagnerpeixoto"]
[Black "Sesleria"]
[Result "1-0"]
[WhiteElo "2201"]
[BlackElo "2059"]
[TimeControl "180+1"]
[EndTime "10:39:31 PDT"]
[Termination "mfwagnerpeixoto won by resignation"]

1. d4 {[%clk 0:03:00.9]} 1... Nf6 {[%clk 0:02:59]} 2. Nf3 {[%clk 0:03:00.6]}
2... d5 {[%clk 0:02:56.2]} 3. c3 {[%clk 0:03:01.5]} 3... Bf5 {[%clk 0:02:52.5]}
4. Qb3 {[%clk 0:02:59.3]} 4... Qc8 {[%clk 0:02:44.3]} 5. Bf4 {[%clk 0:02:58.3]}
5... e6 {[%clk 0:02:41.5]} 6. Nbd2 {[%clk 0:02:56.3]} 6... Be7 {[%clk
0:02:35.1]} 7. e3 {[%clk 0:02:55.5]} 7... O-O {[%clk 0:02:34]} 8. Rc1 {[%clk
0:02:54.4]} 8... c5 {[%clk 0:02:30.8]} 9. dxc5 {[%clk 0:02:47.6]} 9... Bxc5
{[%clk 0:02:28.2]} 10. c4 {[%clk 0:02:39.4]} 10... Na6 {[%clk 0:01:46]} 11. cxd5
{[%clk 0:02:30.9]} 11... Nxd5 {[%clk 0:01:44.1]} 12. Bxa6 {[%clk 0:02:26.8]}
12... Nxf4 {[%clk 0:01:40.3]} 13. Bxb7 {[%clk 0:01:53.2]} 13... Nd3+ {[%clk
0:01:38.6]} 14. Qxd3 {[%clk 0:01:44]} 14... Qxb7 {[%clk 0:01:37.9]} 15. e4
{[%clk 0:01:37.9]} 15... Rfd8 {[%clk 0:01:32.6]} 16. Qe2 {[%clk 0:01:32.7]}
16... Bb4 {[%clk 0:00:38.8]} 17. exf5 {[%clk 0:01:14.9]} 17... Rxd2 {[%clk
0:00:38.4]} 18. Nxd2 {[%clk 0:01:13.2]} 18... Qxg2 {[%clk 0:00:36.7]} 19. Rf1
{[%clk 0:01:05.2]} 19... Rd8 {[%clk 0:00:35.7]} 20. Rc4 {[%clk 0:00:58.3]} 20...
Rxd2 {[%clk 0:00:18.2]} 21. Qxd2 {[%clk 0:00:50.6]} 21... Bxd2+ {[%clk
0:00:18.2]} 22. Kxd2 {[%clk 0:00:51.5]} 22... Qd5+ {[%clk 0:00:18.3]} 23. Kc3
{[%clk 0:00:48.6]} 23... h5 {[%clk 0:00:18.6]} 24. fxe6 {[%clk 0:00:46.4]} 24...
Qxe6 {[%clk 0:00:18.4]} 25. Rc1 {[%clk 0:00:43.4]} 25... Qe4 {[%clk 0:00:16.4]}
1-0